[Event "Titled Tuesday Blitz August 02 Early 2022"]
[White "Andreikin, Dmitry"]
[Black "Chigaev, Maksim"]
[WhiteFideId "4158814"]
[BlackFideId "4108116"]
[WhiteElo "2736"]
[BlackElo "2438"]
[Result "1-0"]
[Round "05"]
[TimeControl "180+1"]
[Date "2022.08.02"]
[WhiteClock "0:00:45"]
[BlackClock "0:00:02"]

1. d4 {[%clk 0:03:00]}  Nf6 {[%clk 0:02:59]} 2. c4 {[%clk 0:03:01]}  g6 {[%clk 0:02:59]} 3. Nc3 {[%clk 0:03:01]}  Bg7 {[%clk 0:02:59]} 4. e4 {[%clk 0:03:01]}  d6 {[%clk 0:02:59]} 5. h3 {[%clk 0:03:02]}  O-O {[%clk 0:03:00]} 6. Be3 {[%clk 0:03:02]}  Nc6 {[%clk 0:03:00]} 7. d5 {[%clk 0:02:58]}  Ne5 {[%clk 0:03:00]} 8. f4 {[%clk 0:02:58]}  Ned7 {[%clk 0:02:59]} 9. Be2 {[%clk 0:02:58]}  c6 {[%clk 0:02:59]} 10. Nf3 {[%clk 0:02:58]}  cxd5 {[%clk 0:02:52]} 11. cxd5 {[%clk 0:02:59]}  b5 {[%clk 0:02:52]} 12. a3 {[%clk 0:02:57]}  Nc5 {[%clk 0:02:40]} 13. Nd2 {[%clk 0:02:41]}  a5 {[%clk 0:02:18]} 14. O-O {[%clk 0:02:38]}  e6 {[%clk 0:02:11]} 15. dxe6 {[%clk 0:02:29]}  Bxe6 {[%clk 0:02:10]} 16. Bxb5 {[%clk 0:02:27]}  a4 {[%clk 0:02:00]} 17. f5 {[%clk 0:02:20]}  Bd7 {[%clk 0:02:00]} 18. e5 {[%clk 0:01:54]}  Bxb5 {[%clk 0:01:20]} 19. exf6 {[%clk 0:01:50]}  Bxf1 {[%clk 0:01:19]} 20. fxg7 {[%clk 0:01:50]}  Re8 {[%clk 0:01:20]} 21. Bxc5 {[%clk 0:01:50]}  Bxg2 {[%clk 0:01:12]} 22. fxg6 {[%clk 0:01:22]}  hxg6 {[%clk 0:00:27]} 23. Qg4 {[%clk 0:01:18]}  dxc5 {[%clk 0:00:24]} 24. Qxg2 {[%clk 0:01:17]}  Qd4+ {[%clk 0:00:24]} 25. Kh1 {[%clk 0:01:15]}  Kxg7 {[%clk 0:00:22]} 26. Rf1 {[%clk 0:01:11]}  Rad8 {[%clk 0:00:11]} 27. Nf3 {[%clk 0:01:10]}  Qc4 {[%clk 0:00:06]} 28. Ng5 {[%clk 0:01:05]}  Rd7 {[%clk 0:00:07]} 29. Qf2 {[%clk 0:01:05]}  f5 {[%clk 0:00:05]} 30. Qg2 {[%clk 0:01:02]}  Rd2 {[%clk 0:00:03]} 31. Qb7+ {[%clk 0:01:00]}  Kh6 {[%clk 0:00:02]} 32. Qh7+ {[%clk 0:00:46]}  Kxg5 {[%clk 0:00:02]} 33. Rg1+ {[%clk 0:00:46]}  Kf4 {[%clk 0:00:02]} 34. Qh4+ {[%clk 0:00:45]} 1-0


[Site "https://www.chess.com"]

[Event "Titled Tuesday Blitz August 02 Early 2022"]
[White "Concio, Michael Jr."]
[Black "Gareyev, Timur"]
[WhiteFideId "5217873"]
[BlackFideId "14200937"]
[WhiteElo "1896"]
[BlackElo "2559"]
[Result "0-1"]
[Round "05"]
[TimeControl "180+1"]
[Date "2022.08.02"]
[WhiteClock "0:00:02"]
[BlackClock "0:00:25"]

1. e4 {[%clk 0:02:55]}  c5 {[%clk 0:02:23]} 2. c4 {[%clk 0:02:52]}  Nc6 {[%clk 0:02:21]} 3. Nc3 {[%clk 0:02:52]}  e6 {[%clk 0:02:17]} 4. g3 {[%clk 0:02:52]}  h5 {[%clk 0:02:17]} 5. h4 {[%clk 0:02:48]}  Nf6 {[%clk 0:02:16]} 6. Bg2 {[%clk 0:02:48]}  Ng4 {[%clk 0:02:16]} 7. d3 {[%clk 0:02:43]}  a6 {[%clk 0:02:14]} 8. a4 {[%clk 0:02:40]}  b6 {[%clk 0:02:13]} 9. Nge2 {[%clk 0:02:28]}  Bb7 {[%clk 0:02:11]} 10. O-O {[%clk 0:02:26]}  Qc7 {[%clk 0:02:08]} 11. b3 {[%clk 0:02:14]}  Nb4 {[%clk 0:01:57]} 12. Na2 {[%clk 0:02:01]}  Nc6 {[%clk 0:01:48]} 13. Bb2 {[%clk 0:01:56]}  Bd6 {[%clk 0:01:46]} 14. d4 {[%clk 0:01:28]}  cxd4 {[%clk 0:01:43]} 15. Nxd4 {[%clk 0:01:29]}  Bc5 {[%clk 0:01:21]} 16. Nxc6 {[%clk 0:01:11]}  Qxg3 {[%clk 0:01:15]} 17. Be5 {[%clk 0:00:51]}  Bxf2+ {[%clk 0:01:00]} 18. Rxf2 {[%clk 0:00:50]}  Qxf2+ {[%clk 0:01:00]} 19. Kh1 {[%clk 0:00:50]}  Qxh4+ {[%clk 0:00:59]} 20. Kg1 {[%clk 0:00:49]}  Qf2+ {[%clk 0:00:59]} 21. Kh1 {[%clk 0:00:49]}  Bxc6 {[%clk 0:00:55]} 22. Bd6 {[%clk 0:00:25]}  Qxg2+ {[%clk 0:00:32]} 23. Kxg2 {[%clk 0:00:25]}  Ne3+ {[%clk 0:00:33]} 24. Kg3 {[%clk 0:00:25]}  Nxd1 {[%clk 0:00:34]} 25. Rxd1 {[%clk 0:00:25]}  Bxe4 {[%clk 0:00:33]} 26. Re1 {[%clk 0:00:20]}  h4+ {[%clk 0:00:32]} 27. Kh2 {[%clk 0:00:19]}  f5 {[%clk 0:00:33]} 28. Nc3 {[%clk 0:00:19]}  Bc6 {[%clk 0:00:31]} 29. Be5 {[%clk 0:00:19]}  Kf7 {[%clk 0:00:31]} 30. Rg1 {[%clk 0:00:18]}  Rag8 {[%clk 0:00:30]} 31. Rg5 {[%clk 0:00:18]}  g6 {[%clk 0:00:27]} 32. Bxh8 {[%clk 0:00:09]}  Rxh8 {[%clk 0:00:28]} 33. Ne2 {[%clk 0:00:10]}  Kf6 {[%clk 0:00:28]} 34. Rg1 {[%clk 0:00:10]}  g5 {[%clk 0:00:29]} 35. b4 {[%clk 0:00:09]}  g4 {[%clk 0:00:28]} 36. b5 {[%clk 0:00:09]}  g3+ {[%clk 0:00:28]} 37. Kh3 {[%clk 0:00:09]}  axb5 {[%clk 0:00:28]} 38. axb5 {[%clk 0:00:07]}  Bf3 {[%clk 0:00:29]} 39. Nf4 {[%clk 0:00:04]}  e5 {[%clk 0:00:28]} 40. Nd5+ {[%clk 0:00:01]}  Kg5 {[%clk 0:00:29]} 41. Rf1 {[%clk 0:00:01]}  Bxd5 {[%clk 0:00:26]} 42. cxd5 {[%clk 0:00:02]}  Rc8 {[%clk 0:00:26]} 43. Re1 {[%clk 0:00:02]}  Rc2 {[%clk 0:00:25]} 0-1


[Site "https://www.chess.com"]

[Event "Titled Tuesday Blitz August 02 Early 2022"]
[White "Drygalov, Sergey"]
[Black "Ajay, Karthikeyan"]
[WhiteFideId "24171743"]
[BlackFideId "35011685"]
[WhiteElo "2523"]
[BlackElo "2183"]
[Result "0-1"]
[Round "05"]
[TimeControl "180+1"]
[Date "2022.08.02"]
[WhiteClock "0:00:08"]
[BlackClock "0:00:19"]

1. d4 {[%clk 0:02:59]}  Nf6 {[%clk 0:02:57]} 2. c4 {[%clk 0:03:00]}  g6 {[%clk 0:02:54]} 3. Nc3 {[%clk 0:03:00]}  Bg7 {[%clk 0:02:54]} 4. e4 {[%clk 0:03:01]}  d6 {[%clk 0:02:54]} 5. Be2 {[%clk 0:03:01]}  O-O {[%clk 0:02:54]} 6. Be3 {[%clk 0:03:02]}  Na6 {[%clk 0:02:49]} 7. h4 {[%clk 0:03:00]}  c5 {[%clk 0:02:47]} 8. d5 {[%clk 0:02:58]}  h5 {[%clk 0:02:43]} 9. Qd2 {[%clk 0:02:49]}  e6 {[%clk 0:02:37]} 10. dxe6 {[%clk 0:02:41]}  Bxe6 {[%clk 0:02:36]} 11. Nh3 {[%clk 0:02:42]}  Bxh3 {[%clk 0:02:24]} 12. Rxh3 {[%clk 0:02:40]}  Re8 {[%clk 0:02:25]} 13. f3 {[%clk 0:02:36]}  Nb4 {[%clk 0:02:20]} 14. a3 {[%clk 0:02:30]}  Nc6 {[%clk 0:02:15]} 15. O-O-O {[%clk 0:02:30]}  Nd4 {[%clk 0:02:04]} 16. Kb1 {[%clk 0:02:26]}  a6 {[%clk 0:01:58]} 17. Bxd4 {[%clk 0:02:16]}  cxd4 {[%clk 0:01:58]} 18. Nd5 {[%clk 0:02:16]}  Nxd5 {[%clk 0:01:57]} 19. cxd5 {[%clk 0:02:17]}  Rc8 {[%clk 0:01:53]} 20. Bd3 {[%clk 0:02:17]}  Be5 {[%clk 0:01:12]} 21. g4 {[%clk 0:02:11]}  hxg4 {[%clk 0:01:12]} 22. fxg4 {[%clk 0:02:11]}  Kg7 {[%clk 0:01:13]} 23. Rf1 {[%clk 0:02:09]}  Rh8 {[%clk 0:01:13]} 24. Rhf3 {[%clk 0:02:00]}  Rc7 {[%clk 0:01:12]} 25. h5 {[%clk 0:01:58]}  Qh4 {[%clk 0:01:10]} 26. Qg2 {[%clk 0:01:45]}  Qg5 {[%clk 0:01:07]} 27. Qf2 {[%clk 0:01:42]}  f6 {[%clk 0:01:00]} 28. hxg6 {[%clk 0:01:42]}  Kxg6 {[%clk 0:00:51]} 29. Qe1 {[%clk 0:01:35]}  Rh2 {[%clk 0:00:44]} 30. Qa5 {[%clk 0:00:55]}  Qd2 {[%clk 0:00:41]} 31. Qb6 {[%clk 0:00:55]}  Rc2 {[%clk 0:00:31]} 32. Bxc2 {[%clk 0:00:23]}  Qxc2+ {[%clk 0:00:32]} 33. Ka1 {[%clk 0:00:24]}  d3 {[%clk 0:00:31]} 34. Rb1 {[%clk 0:00:25]}  d2 {[%clk 0:00:31]} 35. Rff1 {[%clk 0:00:25]}  Rh3 {[%clk 0:00:18]} 36. Qa5 {[%clk 0:00:16]}  Rb3 {[%clk 0:00:18]} 37. Rxf6+ {[%clk 0:00:07]}  Bxf6 {[%clk 0:00:19]} 38. e5 {[%clk 0:00:08]}  Bxe5 {[%clk 0:00:19]} 0-1


[Site "https://www.chess.com"]

[Event "Titled Tuesday Blitz August 02 Early 2022"]
[White "Gokerkan, Cem Kaan"]
[Black "Chen, Justin"]
[WhiteFideId "6336760"]
[BlackFideId "2098199"]
[WhiteElo "2364"]
[BlackElo "2289"]
[Result "1-0"]
[Round "05"]
[TimeControl "180+1"]
[Date "2022.08.02"]
[WhiteClock "0:00:16"]
[BlackClock "0:00:01"]

1. e4 {[%clk 0:03:00]}  e5 {[%clk 0:02:59]} 2. Nc3 {[%clk 0:02:59]}  Nc6 {[%clk 0:02:58]} 3. g3 {[%clk 0:02:59]}  g6 {[%clk 0:02:56]} 4. Bg2 {[%clk 0:02:59]}  Bg7 {[%clk 0:02:56]} 5. Nge2 {[%clk 0:02:59]}  Nge7 {[%clk 0:02:55]} 6. d3 {[%clk 0:03:00]}  d6 {[%clk 0:02:54]} 7. O-O {[%clk 0:02:57]}  O-O {[%clk 0:02:52]} 8. f4 {[%clk 0:02:57]}  f5 {[%clk 0:02:53]} 9. Be3 {[%clk 0:02:50]}  fxe4 {[%clk 0:02:45]} 10. dxe4 {[%clk 0:02:49]}  Be6 {[%clk 0:02:41]} 11. Nd5 {[%clk 0:02:43]}  Qd7 {[%clk 0:02:41]} 12. c3 {[%clk 0:02:28]}  Rae8 {[%clk 0:02:41]} 13. Qd2 {[%clk 0:02:27]}  Rf7 {[%clk 0:02:04]} 14. Rad1 {[%clk 0:02:17]}  Nc8 {[%clk 0:02:03]} 15. c4 {[%clk 0:02:13]}  Bh3 {[%clk 0:01:43]} 16. Ndc3 {[%clk 0:01:38]}  Bxg2 {[%clk 0:01:30]} 17. Kxg2 {[%clk 0:01:38]}  Nb6 {[%clk 0:01:19]} 18. b3 {[%clk 0:01:38]}  exf4 {[%clk 0:00:59]} 19. gxf4 {[%clk 0:01:39]}  Qe6 {[%clk 0:00:44]} 20. Ng3 {[%clk 0:01:33]}  Nd7 {[%clk 0:00:25]} 21. Nd5 {[%clk 0:01:25]}  Nf6 {[%clk 0:00:25]} 22. Nxf6+ {[%clk 0:01:20]}  Bxf6 {[%clk 0:00:23]} 23. Rde1 {[%clk 0:01:16]}  Bh4 {[%clk 0:00:18]} 24. Bg1 {[%clk 0:01:16]}  Bf6 {[%clk 0:00:13]} 25. Qd5 {[%clk 0:01:12]}  Nd8 {[%clk 0:00:10]} 26. Qd3 {[%clk 0:01:04]}  Nc6 {[%clk 0:00:08]} 27. a3 {[%clk 0:01:01]}  Qe7 {[%clk 0:00:06]} 28. Re2 {[%clk 0:00:58]}  Bg7 {[%clk 0:00:05]} 29. b4 {[%clk 0:00:45]}  a6 {[%clk 0:00:05]} 30. Rd2 {[%clk 0:00:39]}  Ref8 {[%clk 0:00:04]} 31. Be3 {[%clk 0:00:38]}  Bh6 {[%clk 0:00:04]} 32. Rdf2 {[%clk 0:00:30]}  Bg7 {[%clk 0:00:02]} 33. c5 {[%clk 0:00:30]}  Rd8 {[%clk 0:00:01]} 34. cxd6 {[%clk 0:00:30]}  cxd6 {[%clk 0:00:02]} 35. Qd5 {[%clk 0:00:28]}  Re8 {[%clk 0:00:01]} 36. Rd2 {[%clk 0:00:26]}  Rd8 {[%clk 0:00:02]} 37. Bb6 {[%clk 0:00:25]}  Rd7 {[%clk 0:00:02]} 38. Be3 {[%clk 0:00:23]}  Kh8 {[%clk 0:00:02]} 39. Rfd1 {[%clk 0:00:24]}  Bf8 {[%clk 0:00:01]} 40. Qb3 {[%clk 0:00:20]}  Bg7 {[%clk 0:00:02]} 41. e5 {[%clk 0:00:16]}  Qe6 {[%clk 0:00:01]} 42. Qxe6 {[%clk 0:00:16]} 1-0


[Site "https://www.chess.com"]

[Event "Titled Tuesday Blitz August 02 Early 2022"]
[White "Goltsev, Dmitry"]
[Black "Steinberg, Nitzan"]
[WhiteFideId "24176710"]
[BlackFideId "2801795"]
[WhiteElo "2258"]
[BlackElo "2471"]
[Result "0-1"]
[Round "05"]
[TimeControl "180+1"]
[Date "2022.08.02"]
[WhiteClock "0:00:28"]
[BlackClock "0:01:20"]

1. e4 {[%clk 0:02:27]}  g6 {[%clk 0:02:59]} 2. Nf3 {[%clk 0:02:27]}  Bg7 {[%clk 0:02:59]} 3. Nc3 {[%clk 0:02:28]}  d6 {[%clk 0:03:00]} 4. d4 {[%clk 0:02:29]}  a6 {[%clk 0:03:00]} 5. a4 {[%clk 0:02:29]}  Nf6 {[%clk 0:03:00]} 6. Be2 {[%clk 0:02:29]}  O-O {[%clk 0:03:00]} 7. h3 {[%clk 0:02:29]}  Nc6 {[%clk 0:03:00]} 8. e5 {[%clk 0:02:30]}  dxe5 {[%clk 0:02:59]} 9. Nxe5 {[%clk 0:02:31]}  Nxd4 {[%clk 0:02:57]} 10. Bc4 {[%clk 0:02:28]}  Bf5 {[%clk 0:02:55]} 11. Bd3 {[%clk 0:02:22]}  Nd7 {[%clk 0:02:45]} 12. Bxf5 {[%clk 0:02:17]}  Nxe5 {[%clk 0:02:44]} 13. Be4 {[%clk 0:02:17]}  c6 {[%clk 0:02:36]} 14. g3 {[%clk 0:02:14]}  Qd7 {[%clk 0:02:26]} 15. Bg2 {[%clk 0:02:12]}  Qf5 {[%clk 0:02:24]} 16. Be4 {[%clk 0:02:05]}  Qe6 {[%clk 0:02:20]} 17. Kf1 {[%clk 0:02:03]}  Rad8 {[%clk 0:02:18]} 18. Qe1 {[%clk 0:01:58]}  f5 {[%clk 0:02:18]} 19. Bd3 {[%clk 0:01:56]}  Nxd3 {[%clk 0:02:06]} 20. Qxe6+ {[%clk 0:01:55]}  Nxe6 {[%clk 0:02:07]} 21. cxd3 {[%clk 0:01:56]}  Rxd3 {[%clk 0:02:07]} 22. Ke2 {[%clk 0:01:54]}  Rfd8 {[%clk 0:02:06]} 23. Re1 {[%clk 0:01:53]}  Kf7 {[%clk 0:02:05]} 24. Be3 {[%clk 0:01:50]}  Rxc3 {[%clk 0:02:02]} 25. bxc3 {[%clk 0:01:51]}  Bxc3 {[%clk 0:02:02]} 26. Rab1 {[%clk 0:01:44]}  Bxe1 {[%clk 0:02:02]} 27. Kxe1 {[%clk 0:01:45]}  Rd7 {[%clk 0:01:58]} 28. a5 {[%clk 0:01:44]}  Nf8 {[%clk 0:01:46]} 29. Ke2 {[%clk 0:01:42]}  e5 {[%clk 0:01:46]} 30. f4 {[%clk 0:01:15]}  exf4 {[%clk 0:01:46]} 31. gxf4 {[%clk 0:01:16]}  Ne6 {[%clk 0:01:46]} 32. Kf3 {[%clk 0:01:15]}  Ng7 {[%clk 0:01:44]} 33. h4 {[%clk 0:01:13]}  Nh5 {[%clk 0:01:44]} 34. Bc5 {[%clk 0:01:11]}  Nf6 {[%clk 0:01:44]} 35. Rb3 {[%clk 0:01:08]}  Ne4 {[%clk 0:01:44]} 36. Be3 {[%clk 0:01:09]}  Nd6 {[%clk 0:01:41]} 37. Bc5 {[%clk 0:01:00]}  Nc4 {[%clk 0:01:40]} 38. Bb4 {[%clk 0:01:00]}  Rd5 {[%clk 0:01:35]} 39. Rb1 {[%clk 0:00:53]}  Rb5 {[%clk 0:01:31]} 40. h5 {[%clk 0:00:46]}  c5 {[%clk 0:01:29]} 41. hxg6+ {[%clk 0:00:47]}  hxg6 {[%clk 0:01:29]} 42. Rc1 {[%clk 0:00:47]}  Rxb4 {[%clk 0:01:29]} 43. Kg3 {[%clk 0:00:48]}  Nd6 {[%clk 0:01:26]} 44. Rd1 {[%clk 0:00:43]}  Rd4 {[%clk 0:01:25]} 45. Rb1 {[%clk 0:00:43]}  c4 {[%clk 0:01:26]} 46. Kh4 {[%clk 0:00:43]}  Rxf4+ {[%clk 0:01:25]} 47. Kg5 {[%clk 0:00:43]}  Rg4+ {[%clk 0:01:23]} 48. Kh6 {[%clk 0:00:42]}  Kf6 {[%clk 0:01:20]} 49. Kh7 {[%clk 0:00:41]}  c3 {[%clk 0:01:19]} 50. Rc1 {[%clk 0:00:35]}  Rc4 {[%clk 0:01:19]} 51. Kg8 {[%clk 0:00:34]}  Ke5 {[%clk 0:01:19]} 52. Kg7 {[%clk 0:00:34]}  c2 {[%clk 0:01:19]} 53. Kf8 {[%clk 0:00:30]}  f4 {[%clk 0:01:20]} 54. Ke7 {[%clk 0:00:31]}  Ne4 {[%clk 0:01:20]} 55. Kd7 {[%clk 0:00:31]}  f3 {[%clk 0:01:20]} 56. Ke7 {[%clk 0:00:30]}  f2 {[%clk 0:01:20]} 57. Ke8 {[%clk 0:00:29]}  g5 {[%clk 0:01:21]} 58. Ke7 {[%clk 0:00:29]}  g4 {[%clk 0:01:21]} 59. Kf7 {[%clk 0:00:30]}  g3 {[%clk 0:01:22]} 60. Kg6 {[%clk 0:00:30]}  g2 {[%clk 0:01:22]} 61. Kh5 {[%clk 0:00:31]}  f1=Q {[%clk 0:01:22]} 62. Kh4 {[%clk 0:00:28]}  Qxc1 {[%clk 0:01:21]} 63. Kh3 {[%clk 0:00:28]}  g1=Q {[%clk 0:01:20]} 64. Kh4 {[%clk 0:00:28]}  Qh6# {[%clk 0:01:20]} 0-1


[Site "https://www.chess.com"]

[Event "Titled Tuesday Blitz August 02 Early 2022"]
[White "Gurel, Ediz"]
[Black "Martinez Alcantara, Jose Eduardo"]
[WhiteFideId "44507356"]
[BlackFideId "3805662"]
[WhiteElo "1894"]
[BlackElo "2703"]
[Result "0-1"]
[Round "05"]
[TimeControl "180+1"]
[Date "2022.08.02"]
[WhiteClock "0:00:02"]
[BlackClock "0:00:06"]

1. e4 {[%clk 0:03:00]}  Nc6 {[%clk 0:02:59]} 2. d4 {[%clk 0:03:00]}  d5 {[%clk 0:02:59]} 3. e5 {[%clk 0:02:59]}  Bf5 {[%clk 0:02:59]} 4. Nf3 {[%clk 0:02:56]}  e6 {[%clk 0:02:59]} 5. Bd3 {[%clk 0:02:54]}  Nge7 {[%clk 0:02:58]} 6. O-O {[%clk 0:02:54]}  Bxd3 {[%clk 0:02:51]} 7. Qxd3 {[%clk 0:02:55]}  Ng6 {[%clk 0:02:51]} 8. Be3 {[%clk 0:02:45]}  Qd7 {[%clk 0:02:50]} 9. c3 {[%clk 0:02:34]}  f6 {[%clk 0:02:50]} 10. exf6 {[%clk 0:02:31]}  gxf6 {[%clk 0:02:51]} 11. Re1 {[%clk 0:02:26]}  Be7 {[%clk 0:02:50]} 12. Nbd2 {[%clk 0:02:25]}  O-O-O {[%clk 0:02:46]} 13. b4 {[%clk 0:02:17]}  Bd6 {[%clk 0:02:39]} 14. Nb3 {[%clk 0:01:45]}  Kb8 {[%clk 0:02:17]} 15. Nc5 {[%clk 0:01:43]}  Bxc5 {[%clk 0:02:17]} 16. bxc5 {[%clk 0:01:42]}  Ka8 {[%clk 0:02:17]} 17. Rab1 {[%clk 0:01:39]}  e5 {[%clk 0:02:14]} 18. Qb5 {[%clk 0:01:36]}  Rb8 {[%clk 0:02:13]} 19. dxe5 {[%clk 0:01:27]}  fxe5 {[%clk 0:02:13]} 20. Red1 {[%clk 0:01:27]}  Rhd8 {[%clk 0:02:05]} 21. Bg5 {[%clk 0:01:20]}  Rg8 {[%clk 0:02:03]} 22. Qb3 {[%clk 0:01:10]}  e4 {[%clk 0:01:36]} 23. Rxd5 {[%clk 0:00:57]}  Qe6 {[%clk 0:01:16]} 24. Nd4 {[%clk 0:00:44]}  Nxd4 {[%clk 0:01:16]} 25. Rxd4 {[%clk 0:00:40]}  Qc6 {[%clk 0:00:29]} 26. Qd5 {[%clk 0:00:17]}  Qa6 {[%clk 0:00:29]} 27. Be3 {[%clk 0:00:15]}  Nh4 {[%clk 0:00:26]} 28. Kh1 {[%clk 0:00:12]}  Nxg2 {[%clk 0:00:25]} 29. Qxe4 {[%clk 0:00:12]}  Nxe3 {[%clk 0:00:18]} 30. fxe3 {[%clk 0:00:12]}  Rbf8 {[%clk 0:00:17]} 31. Rdd1 {[%clk 0:00:08]}  c6 {[%clk 0:00:13]} 32. Qe7 {[%clk 0:00:05]}  Rb8 {[%clk 0:00:13]} 33. Rg1 {[%clk 0:00:05]}  Rge8 {[%clk 0:00:13]} 34. Qd7 {[%clk 0:00:05]}  Qe2 {[%clk 0:00:09]} 35. Rg2 {[%clk 0:00:04]}  Qf3 {[%clk 0:00:09]} 36. Qxh7 {[%clk 0:00:03]}  Rxe3 {[%clk 0:00:07]} 37. Rg1 {[%clk 0:00:02]}  Rxc3 {[%clk 0:00:05]} 38. Qh4 {[%clk 0:00:02]}  Rxc5 {[%clk 0:00:04]} 39. Qb4 {[%clk 0:00:01]}  Rb5 {[%clk 0:00:02]} 40. Qh4 {[%clk 0:00:01]}  Rh5 {[%clk 0:00:02]} 41. Qd4 {[%clk 0:00:01]}  a6 {[%clk 0:00:02]} 42. a4 {[%clk 0:00:01]}  Rbh8 {[%clk 0:00:03]} 43. Qd6 {[%clk 0:00:01]}  Rxh2+ {[%clk 0:00:03]} 44. Qxh2 {[%clk 0:00:02]}  Rxh2+ {[%clk 0:00:03]} 45. Kxh2 {[%clk 0:00:03]}  Qf4+ {[%clk 0:00:04]} 46. Rg3 {[%clk 0:00:03]}  Qxa4 {[%clk 0:00:04]} 47. Rg8+ {[%clk 0:00:03]}  Ka7 {[%clk 0:00:05]} 48. R8g4 {[%clk 0:00:04]}  Qc2+ {[%clk 0:00:05]} 49. R1g2 {[%clk 0:00:05]}  Qc5 {[%clk 0:00:06]} 50. Rg7 {[%clk 0:00:05]}  Qd6+ {[%clk 0:00:06]} 51. Kg1 {[%clk 0:00:05]}  c5 {[%clk 0:00:07]} 52. Rf2 {[%clk 0:00:04]}  Qd4 {[%clk 0:00:07]} 53. Rh7 {[%clk 0:00:03]}  c4 {[%clk 0:00:06]} 54. Rh2 {[%clk 0:00:01]}  c3 {[%clk 0:00:07]} 55. Kf1 {[%clk 0:00:02]}  Qd1+ {[%clk 0:00:06]} 0-1


[Site "https://www.chess.com"]

[Event "Titled Tuesday Blitz August 02 Early 2022"]
[White "Harmon-Vellotti, Luke"]
[Black "Aradhya, Garg"]
[WhiteFideId "2030012"]
[BlackFideId "25006746"]
[WhiteElo "2354"]
[BlackElo "2203"]
[Result "0-1"]
[Round "05"]
[TimeControl "180+1"]
[Date "2022.08.02"]
[WhiteClock "0:00:15"]
[BlackClock "0:00:32"]

1. e4 {[%clk 0:03:00]}  e5 {[%clk 0:02:59]} 2. Nf3 {[%clk 0:03:00]}  Nc6 {[%clk 0:03:00]} 3. Bb5 {[%clk 0:03:01]}  a6 {[%clk 0:03:00]} 4. Ba4 {[%clk 0:03:01]}  Nf6 {[%clk 0:02:58]} 5. O-O {[%clk 0:03:01]}  Be7 {[%clk 0:02:58]} 6. d4 {[%clk 0:02:49]}  exd4 {[%clk 0:02:57]} 7. Re1 {[%clk 0:02:44]}  d6 {[%clk 0:02:52]} 8. Nxd4 {[%clk 0:02:36]}  Bd7 {[%clk 0:02:49]} 9. Nxc6 {[%clk 0:02:36]}  Bxc6 {[%clk 0:02:49]} 10. Bxc6+ {[%clk 0:02:35]}  bxc6 {[%clk 0:02:50]} 11. Nc3 {[%clk 0:02:34]}  O-O {[%clk 0:02:50]} 12. Bf4 {[%clk 0:02:32]}  Nd7 {[%clk 0:02:50]} 13. Qd2 {[%clk 0:02:30]}  Bf6 {[%clk 0:02:50]} 14. Rad1 {[%clk 0:02:31]}  Re8 {[%clk 0:02:48]} 15. f3 {[%clk 0:02:27]}  a5 {[%clk 0:02:46]} 16. b3 {[%clk 0:02:26]}  Qb8 {[%clk 0:02:42]} 17. Na4 {[%clk 0:02:23]}  Nb6 {[%clk 0:02:42]} 18. Nxb6 {[%clk 0:02:20]}  Qxb6+ {[%clk 0:02:41]} 19. Be3 {[%clk 0:02:21]}  Qb4 {[%clk 0:02:41]} 20. Qf2 {[%clk 0:01:57]}  c5 {[%clk 0:02:36]} 21. a4 {[%clk 0:01:50]}  c4 {[%clk 0:02:35]} 22. Bd2 {[%clk 0:01:46]}  Qa3 {[%clk 0:02:35]} 23. Rb1 {[%clk 0:01:27]}  Reb8 {[%clk 0:02:31]} 24. Qe3 {[%clk 0:01:21]}  Qa2 {[%clk 0:02:30]} 25. Rec1 {[%clk 0:01:16]}  Bb2 {[%clk 0:02:19]} 26. Rd1 {[%clk 0:01:03]}  cxb3 {[%clk 0:02:18]} 27. cxb3 {[%clk 0:01:02]}  Qxb3 {[%clk 0:02:18]} 28. Qxb3 {[%clk 0:00:56]}  Rxb3 {[%clk 0:02:15]} 29. Kf1 {[%clk 0:00:57]}  Kf8 {[%clk 0:01:49]} 30. Bc1 {[%clk 0:00:48]}  Rab8 {[%clk 0:01:47]} 31. Bxb2 {[%clk 0:00:48]}  Rxb2 {[%clk 0:01:46]} 32. Rxb2 {[%clk 0:00:49]}  Rxb2 {[%clk 0:01:46]} 33. Rd5 {[%clk 0:00:50]}  Ke7 {[%clk 0:01:32]} 34. Rxa5 {[%clk 0:00:44]}  Ra2 {[%clk 0:01:33]} 35. h4 {[%clk 0:00:35]}  Kd7 {[%clk 0:01:31]} 36. e5 {[%clk 0:00:28]}  dxe5 {[%clk 0:01:30]} 37. Rxe5 {[%clk 0:00:25]}  Rxa4 {[%clk 0:01:29]} 38. h5 {[%clk 0:00:26]}  Rd4 {[%clk 0:01:27]} 39. Ke2 {[%clk 0:00:25]}  Rd6 {[%clk 0:01:26]} 40. Ra5 {[%clk 0:00:25]}  Kc6 {[%clk 0:01:26]} 41. g4 {[%clk 0:00:24]}  Kb6 {[%clk 0:01:26]} 42. Ra8 {[%clk 0:00:25]}  g6 {[%clk 0:01:21]} 43. hxg6 {[%clk 0:00:23]}  hxg6 {[%clk 0:01:20]} 44. Rf8 {[%clk 0:00:23]}  Rd7 {[%clk 0:01:20]} 45. Rb8+ {[%clk 0:00:23]}  Kc5 {[%clk 0:01:20]} 46. Ke3 {[%clk 0:00:23]}  Kc4 {[%clk 0:01:20]} 47. f4 {[%clk 0:00:20]}  Re7+ {[%clk 0:01:19]} 48. Kf3 {[%clk 0:00:20]}  c5 {[%clk 0:01:19]} 49. f5 {[%clk 0:00:20]}  gxf5 {[%clk 0:01:18]} 50. gxf5 {[%clk 0:00:21]}  Kd3 {[%clk 0:01:18]} 51. Rd8+ {[%clk 0:00:21]}  Kc3 {[%clk 0:01:16]} 52. Kf4 {[%clk 0:00:21]}  c4 {[%clk 0:01:16]} 53. f6 {[%clk 0:00:22]}  Rc7 {[%clk 0:01:15]} 54. Re8 {[%clk 0:00:21]}  Rc6 {[%clk 0:00:49]} 55. Kf5 {[%clk 0:00:19]}  Kd2 {[%clk 0:00:44]} 56. Re7 {[%clk 0:00:14]}  c3 {[%clk 0:00:44]} 57. Rxf7 {[%clk 0:00:14]}  c2 {[%clk 0:00:45]} 58. Rd7+ {[%clk 0:00:15]}  Ke2 {[%clk 0:00:44]} 59. Re7+ {[%clk 0:00:16]}  Kd2 {[%clk 0:00:33]} 60. Rd7+ {[%clk 0:00:15]}  Kc3 {[%clk 0:00:32]} 0-1


[Site "https://www.chess.com"]